Cogmind - Beta 12 @@@ ROGUE MODE // 2023.04.07 @ 23:09:45 Player: ArabianSandBoa Result: Destroyed by H-55 Commando with Assault Rifle Performance ------------- Evolutions (2) 1000 Regions Visited (9) 1800 Robots Destroyed (87) 435 Value Destroyed (2506) 2506 Prototype IDs (38) 760 Alien Tech Used (0) 0 Bonus (648) 648 TOTAL SCORE: 7149 Bonus ------- High Alert Combat Kills 85 Follower Combat Kills 263 Aligned with FarCom 300 Cogmind --------- Core Integrity 0/550 Matter 300/300 Energy 146/150 System Corruption 4% Temperature Warm (108) Movement Hovering (38) Location -8/Recycling Parts ------- > --- POWER (1) -------- Light Angular Momentum Engine > --- PROPULSION (4) --- Aerolev Unit Aerolev Unit Aerolev Unit Aerolev Unit > --- UTILITY (4) ------ Lightpack 2.0 Long-range Tractor Beam > --- WEAPON (2) ------- Precision Beam Rifle Enhanced Autogun > --- INVENTORY (40) --- Light Nuclear Core Aerolev Unit Aerolev Unit Aerolev Unit Surge Thruster Scrap Engine Improved Targeting Computer Actuator Array Reaction Control System Improved Light Armor Plating Hacking Suite Hacking Suite Authchip [Storage] Authchip [Processor] Authchip [Armor] Sensor Drone Bay (20/20) Army-in-a-Box (30/30) Firepult Katana Peak State ------------ > --- POWER ------------ Light Angular Momentum Engine > --- PROPULSION ------- Aerolev Unit Aerolev Unit Aerolev Unit Aerolev Unit > --- UTILITY ---------- Lightpack 2.0 Long-range Tractor Beam > --- WEAPON ----------- Guided Missile Launcher > --- INVENTORY -------- Light Nuclear Core Light Nuclear Core Aerolev Unit Aerolev Unit Aerolev Unit Aerolev Unit Improved Heat Sink Improved Targeting Computer Actuator Array Reaction Control System Improved Light Armor Plating Hacking Suite Authchip [R/Combat] Authchip [Storage] Authchip [Processor] Authchip [Armor] Sensor Drone Bay Army-in-a-Box Shock Rifle Precision Beam Rifle Precision Beam Rifle Precision Beam Rifle Firepult Enhanced Autogun Heavy Battle Rifle Advanced EMP Blaster Mini Grenade Launcher Mace Katana [Rating: 81] Favorites ----------- Power Light Nuclear Core Engine Light Angular Momentum Engine Power Core Light Nuclear Core Propulsion Light Treads Treads Light Treads Leg Improved Aluminum Leg Wheel Compact Wheel Hover Unit Aerolev Unit Flight Unit Improved Flight Unit Utility Large Storage Unit Device Heat Sink Storage Large Storage Unit Processor Targeting Computer Hackware Hacking Suite Protection Light Armor Plating Weapon Spread Laser Energy Gun Spread Laser Energy Cannon Firepult Ballistic Gun Assault Rifle Launcher Guided Missile Launcher Impact Weapon Mace Slashing Weapon Katana Special Melee Weapon Improved Datajack Build | -11 -10 -10 -9 -9 -9 -8 -8 -8 -8 ------- Run | Jun Mat Min Mat Min Exi Min Mat Sto Rec Slots Evolved 4 | . . . 2 . . . 2 . . Power . | . . . . . . . . . . Propulsion 2 | . . . . . . . 2 . . Utility 2 | . . . 2 . . . . . . Weapon . | . . . . . . . . . . Parts Attached 103 | . 14 7 24 6 3 2 18 23 6 Power 14 | . 1 2 4 . . . 4 3 . Engine 5 | . . 1 1 . . . 2 1 . Core 9 | . 1 1 3 . . . 2 2 . Reactor . | . . . . . . . . . . Propulsion 29 | . 9 . 3 2 . 2 4 7 2 Treads 4 | . 4 . . . . . . . . Leg 2 | . . . . 2 . . . . . Wheel 8 | . 5 . 3 . . . . . . Hover 7 | . . . . . . . . 5 2 Flight 8 | . . . . . . 2 4 2 . Utility 23 | . 3 3 9 2 1 . 2 3 . Device 11 | . 1 3 4 1 . . . 2 . Storage 3 | . 2 . . . 1 . . . . Processor 3 | . . . 1 1 . . 1 . . Hackware 1 | . . . 1 . . . . . . Protection 5 | . . . 3 . . . 1 1 . Artifact . | . . . . . . . . . . Weapon 37 | . 1 2 8 2 2 . 8 10 4 Energy Gun 22 | . . 2 6 2 2 . 5 3 2 Energy Cannon 2 | . . . . . . . 1 1 . Ballistic Gun 3 | . 1 . . . . . . 1 1 Ballistic Cannon . | . . . . . . . . . . Launcher 3 | . . . 1 . . . . 2 . Special Weapon . | . . . . . . . . . . Impact Weapon 1 | . . . 1 . . . . . . Slashing Weapon 5 | . . . . . . . 2 3 . Piercing Weapon . | . . . . . . . . . . Special Melee Weapon 1 | . . . . . . . . . 1 Unidentified Prototypes 10 | . . 1 1 . . . . 8 . Parts Lost 23 | . 1 2 6 2 . . 9 . 3 Power 5 | . . 1 2 . . . 2 . . Propulsion 8 | . 1 . 1 1 . . 4 . 1 Utility 2 | . . . 2 . . . . . . Weapon 8 | . . 1 1 1 . . 3 . 2 Highest Loss Streak 6 | . 1 1 5 1 . . 6 . 1 To Critical Strikes . | . . . . . . . . . . Average Slot Usage (%) 88 | . 92 97 95 99 66 66 62 75 76 Engine 1 | . 3 1 . . . . . 2 9 Core 9 | . 10 12 8 11 11 . 5 6 . Treads 7 | . 21 28 . . . . . . . Leg 6 | . 1 . . 20 22 . . . . Wheel 4 | . 5 . 21 1 . . . . . Hover 5 | . . . . . . . . 32 35 Flight 2 | . . . . . . 22 23 2 . Device 9 | . 10 14 11 9 4 . . 8 9 Storage 11 | . 14 14 11 11 11 11 9 9 9 Processor 3 | . . . 4 12 4 . 1 . . Hackware 5 | . . . 9 11 11 11 6 . . Energy Gun 14 | . 5 22 20 21 2 22 11 5 5 Ballistic Gun 3 | . 18 3 . . . . . 1 6 Naked Turns . | . . . . . . . . . . Heaviest Build 38 | 13 29 32 38 32 31 9 18 25 25 Greatest Support 40 | 20 40 40 32 26 26 10 18 32 32 Greatest Overweight (x) 4 | . 1 . 1 3 1 . 4 2 . Average Overweight (x) . | . . . . 1 . . . . . Largest Inventory Capacity 40 | . 15 15 15 15 40 40 40 40 40 Average Capacity 22 | . 14 15 15 15 29 40 40 40 40 Most Carried 36 | . 15 15 15 15 25 25 24 36 33 Average Carried 17 | . 13 14 14 14 18 24 19 26 26 Final Capacity 40 | 8 15 15 15 15 40 40 40 40 40 Final Carried 34 | 6 15 15 15 15 23 25 22 34 26 Class Distribution -------------------- 59% | Mutant 25% | Hauler-Mutant 12% | Scavenger-Mutant Dominant Class ---------------- Mutant | -10/Materials Mutant | -10/Mines Mutant | -9/Materials Mutant | -9/Mines Hauler-Mutant | -9/Exiles Hauler-Mutant | -8/Mines Hauler-Sprinter | -8/Materials Hauler-Mutant | -8/Storage Hauler-Mutant | -8/Recycling Resources | -11 -10 -10 -9 -9 -9 -8 -8 -8 -8 ----------- Run | Jun Mat Min Mat Min Exi Min Mat Sto Rec Matter Collected 1884 | 196 259 145 255 63 . 10 82 601 273 Remotely 623 | . . . . . . . . 350 273 Salvage Created 2889 | . 413 154 686 298 . . 548 507 283 Parts 149 | . 27 11 44 17 . . 18 22 10 Haulers Intercepted 7 | . 1 . 1 . . . 1 4 . Recyclers Shooed 7 | . . 2 2 . . . . 1 2 Parts Field Recycled . | . . . . . . . . . . Retrieved Matter . | . . . . . . . . . . Parts Self-Destructed . | . . . . . . . . . . Prevented . | . . . . . . . . . . Kills | -11 -10 -10 -9 -9 -9 -8 -8 -8 -8 ------- Run | Jun Mat Min Mat Min Exi Min Mat Sto Rec Combat Hostiles Destroyed 62 | . 11 4 13 11 . . 9 8 6 Melee 1 | . . . . . . . 1 . . Guns 42 | . 11 4 11 11 . . 2 . 3 AOE 17 | . . . 2 . . . 4 8 3 Classes Destroyed 12 | . 4 . 5 2 . . . . 1 Worker 4 | . . . 2 . . . . 2 . Builder 1 | . . . 1 . . . . . . Hauler 7 | . 1 . 1 . . . 1 4 . Recycler 5 | . . . 3 . . . . 1 1 Operator 3 | . . . 2 . . . 1 . . Watcher 5 | . 1 . 4 . . . . . . Swarmer 14 | . 6 . . 6 . . . . 2 Grunt 31 | . 5 4 7 3 . . 7 4 1 Brawler 1 | . . . . 1 . . . . . Duelist 2 | . . . . 1 . . . . 1 Sentry 12 | . . . 6 . . . 2 4 . Programmer 2 | . . . . . . . . . 2 Best Kill Streak 10 | . 3 2 10 4 . . 7 6 4 Combat Bots Only 7 | . 3 2 6 4 . . 7 6 4 Max Kills in Single Turn 3 | . 1 1 2 2 . . 3 2 2 Gunslinging 1 | . . . . 1 . . . . . Exploded 2 | . . . 1 . . . 2 2 2 Melee 1 | . . . . . . . 1 . . Uniques/NPCs Destroyed . | . . . . . . . . . . Combat | -11 -10 -10 -9 -9 -9 -8 -8 -8 -8 -------- Run | Jun Mat Min Mat Min Exi Min Mat Sto Rec Damage Taken 3697 | . 375 263 681 203 . . 1542 105 528 Core 877 | . 61 35 183 37 . . 493 . 68 Absorbed by Shields . | . . . . . . . . . . Regen/Repaired (Parts) 42 | . . . 42 . . . . . . Core Remaining (%) 68 | 100 . 61 . . . 45 . . . Volleys Fired 179 | . 48 21 38 17 . . 9 27 19 Largest 2 | . 2 2 2 2 . . 2 1 2 Hottest 250 | . 60 112 130 130 . . 250 61 86 Shots Fired 304 | . 90 42 72 32 . . 13 26 29 Gun 271 | . 90 42 68 32 . . 11 1 27 Cannon 2 | . . . . . . . 2 . . Launcher 31 | . . . 4 . . . . 25 2 Special . | . . . . . . . . . . Kinetic 96 | . 64 15 . . . . . . 17 Thermal 164 | . 26 27 68 21 . . 11 1 10 Explosive 31 | . . . 4 . . . . 25 2 Electromagnetic 13 | . . . . 11 . . 2 . . Robot Hit Streak 24 | . 8 12 15 9 . . 14 23 24 Robot Miss Streak 6 | . 3 3 6 5 . . 2 . 2 Penetration Max . | . . . . . . . . . . Secondary Targets 5 | . 2 1 1 1 . . . . . Max Gunslinging Chain 1 | . 1 1 1 1 . . . . . Shots Hit Robots 236 | . 54 28 66 27 . . 15 20 26 Core Hits 213 | . 20 11 99 30 . . 17 24 12 Critical Kills . | . . . . . . . . . . Critical Parts Destroyed . | . . . . . . . . . . Critical Strikes 4 | . . 2 . . . . 1 1 . Burn 3 | . . 2 . . . . 1 . . Sever 1 | . . . . . . . . 1 . Melee Attacks 36 | . . . . . . . 15 15 6 Impact . | . . . . . . . . . . Slashing 30 | . . . . . . . 15 15 . Piercing . | . . . . . . . . . . Sneak Attacks 11 | . . . . . . . 1 4 6 Combat Hostiles 6 | . . . . . . . . . 6 Follow-up Attacks . | . . . . . . . . . . Damage Inflicted 5755 | . 648 379 1526 387 . . 759 1484 572 Guns 2894 | . 648 379 903 387 . . 174 . 403 Cannons 102 | . . . . . . . 102 . . Explosions 2265 | . . . 623 . . . 354 1119 169 Melee 490 | . . . . . . . 125 365 . Ramming 4 | . . . . . . . 4 . . Kinetic 825 | . 484 105 . . . . . . 236 Thermal 2786 | . 164 274 1297 290 . . 594 . 167 Explosive 1517 | . . . 229 . . . . 1119 169 Electromagnetic 133 | . . . . 97 . . 36 . . Impact . | . . . . . . . . . . Slashing 490 | . . . . . . . 125 365 . Piercing . | . . . . . . . . . . Highest Corruption 4 | . . . 1 1 1 1 . 2 4 Average Corruption 1 | . . . 1 1 1 1 . 2 3 Corruption Purged . | . . . . . . . . . . Corruption Blocked . | . . . . . . . . . . Effects 22 | . . . 2 7 3 1 . 1 8 Message Errors 6 | . . . 1 3 . . . . 2 Matter Fused 4 | . . . . 1 . . . . 3 Heat Flow Errors 2 | . . . . . 2 . . . . Energy Discharges 3 | . . . 1 1 1 . . . . Parts Rejected 1 | . . . . . . . . . 1 Data Loss (minor) 4 | . . . . 1 . 1 . . 2 Weapon Failures 2 | . . . . 1 . . . 1 . Overload Shots . | . . . . . . . . . . Overflow Damage 206 | . . . 143 . . . 8 55 . Projectiles . | . . . . . . . . . . Explosions 206 | . . . 143 . . . 8 55 . Melee . | . . . . . . . . . . Knockbacks . | . . . . . . . . . . Impact . | . . . . . . . . . . Kinetic . | . . . . . . . . . . Secondary . | . . . . . . . . . . Self-Inflicted Damage 224 | . . . 193 . . . 2 29 . Shots 3 | . . . 2 . . . . 1 . Rammed 1 | . . . . . . . 1 . . Targets Rammed 1 | . . . . . . . 1 . . Kicked . | . . . . . . . . . . Crushed . | . . . . . . . . . . Highest Temperature 513 | . 45 112 380 196 237 . 513 16 127 Average Temperature 81 | . 24 25 86 94 102 . 172 5 52 Received Heat Transfer 1392 | . 144 165 141 42 . . 828 36 36 Effects 2 | . . . . . . . 2 . . Interference 2 | . . . . . . . 2 . . Siege Activations . | . . . . . . . . . . Robots Corrupted . | . . . . . . . . . . Combat Hostiles . | . . . . . . . . . . Parts Fried . | . . . . . . . . . . Impact Corruptions . | . . . . . . . . . . Robots Melted 2 | . . . . . . . 2 . . Combat Hostiles 2 | . . . . . . . 2 . . Parts Melted 14 | . 1 2 . . . . 11 . . Heat Transferred 5827 | . 375 851 1330 408 . . 2530 . 333 Parts Sabotaged . | . . . . . . . . . . Parts Stolen . | . . . . . . . . . . Parts Stripped . | . . . . . . . . . . Power Chain Reactions . | . . . . . . . . . . Missiles Intercepted . | . . . . . . . . . . Alert | -11 -10 -10 -9 -9 -9 -8 -8 -8 -8 ------- Run | Jun Mat Min Mat Min Exi Min Mat Sto Rec Peak Influence 597 | . 238 184 530 324 . . 441 597 329 Initial 232 | . . 72 . 174 . . . 185 232 Average 176 | . 129 60 274 177 . . 155 265 249 Maximum Alert Level 2 | . 1 . 2 1 . . 2 2 1 Low Security (%) 61 | . 96 100 40 51 . 100 67 11 35 Level 1 30 | . 3 . 19 48 . . 22 81 64 Level 2 8 | . . . 40 . . . 10 6 . Level 3 . | . . . . . . . . . . Level 4 . | . . . . . . . . . . Level 5 . | . . . . . . . . . . High Security . | . . . . . . . . . . Max Security . | . . . . . . . . . . Squads Dispatched 13 | . 3 1 4 . . . 3 2 . Investigation 9 | . 3 1 2 . . . 1 2 . Extermination . | . . . . . . . . . . Reinforcement 4 | . . . 2 . . . 2 . . Assault . | . . . . . . . . . . Garrison . | . . . . . . . . . . Intercept . | . . . . . . . . . . Searches Triggered . | . . . . . . . . . . Construction Impeded 1 | . . . 1 . . . . . . Haulers Reinforced . | . . . . . . . . . . Active Scanning Responses . | . . . . . . . . . . Cargo Convoy Interrupts . | . . . . . . . . . . Stealth | -11 -10 -10 -9 -9 -9 -8 -8 -8 -8 --------- Run | Jun Mat Min Mat Min Exi Min Mat Sto Rec Distress Signals 8 | . 2 . 3 . . . 2 . 1 Communications Jammed . | . . . . . . . . . . Distress Signals . | . . . . . . . . . . Times Spotted 113 | . 17 4 33 13 . . 27 10 9 Peak Tracking Total 14 | . 4 2 8 4 . . 14 6 5 Tactical Retreats 11 | . 1 . 1 . . . 7 2 . Traps | -11 -10 -10 -9 -9 -9 -8 -8 -8 -8 ------- Run | Jun Mat Min Mat Min Exi Min Mat Sto Rec Traps Triggered 2 | . . . . . . . 1 1 . Indirectly . | . . . . . . . . . . Trap Hack Attempts . | . . . . . . . . . . Triggered . | . . . . . . . . . . Disarmed . | . . . . . . . . . . Reprogrammed 4 | . . . 4 . . . . . . Reused 1 | . . . 1 . . . . . . Traps Extracted . | . . . . . . . . . . Installed . | . . . . . . . . . . Triggered 1 | . . . 1 . . . . . . Machines | -11 -10 -10 -9 -9 -9 -8 -8 -8 -8 ---------- Run | Jun Mat Min Mat Min Exi Min Mat Sto Rec Machines Disabled 13 | . . 1 5 . . . 2 5 . Max in Single Turn 2 | . . 1 2 . . . 1 1 . Machines Repaired . | . . . . . . . . . . Machines Sabotaged . | . . . . . . . . . . Overloaded Fab Kills . | . . . . . . . . . . Hacking | -11 -10 -10 -9 -9 -9 -8 -8 -8 -8 --------- Run | Jun Mat Min Mat Min Exi Min Mat Sto Rec Machines Accessed 33 | . 5 4 10 . 1 . 5 6 2 Terminals 24 | . 4 3 6 . . . 4 5 2 Fabricators . | . . . . . . . . . . Repair Stations 1 | . . . 1 . . . . . . Recycling Units 4 | . 1 . 2 . . . . 1 . Scanalyzers 2 | . . . 1 . . . 1 . . Garrison Access . | . . . . . . . . . . Total Hacks 117 | . 22 13 43 . 1 . 12 19 7 Successful 67 | . 10 6 30 . 1 . 8 8 4 Failed 48 | . 11 7 12 . . . 4 11 3 Catastrophic 7 | . 2 1 . . . . 3 . 1 Database Lockouts 2 | . 1 . 1 . . . . . . Manual 60 | . 16 8 11 . 1 . 11 7 6 Terminals 90 | . 15 12 30 . . . 10 16 7 Fabricators . | . . . . . . . . . . Repair Stations 4 | . . . 4 . . . . . . Recycling Units 17 | . 7 . 7 . . . . 3 . Scanalyzers 4 | . . . 2 . . . 2 . . Garrison Access . | . . . . . . . . . . Terminal Hacks 38 | . 4 5 17 . 1 . 3 6 2 Record 2 | . . 1 1 . . . . . . Part Schematic 2 | . 1 . . . . . . . 1 Robot Analysis 5 | . . 1 3 . . . 1 . . Prototype ID Bank 4 | . 2 . . . . . . 2 . Open Door 2 | . . 1 . . . . . 1 . Level Access Points 1 | . . 1 . . . . . . . Branch Access Points 2 | . . . 1 . . . . 1 . Emergency Access Points 2 | . . . 1 . . . 1 . . Repair Station Index 1 | . . . 1 . . . . . . Scanalyzer Index 1 | . . . 1 . . . . . . Alert Level 2 | . . . 2 . . . . . . Unreport Threat 2 | . . . 1 . . . . . 1 Reprogram Traps 1 | . . . 1 . . . . . . Transport Status 3 | . 1 . 2 . . . . . . Hauler Manifests 2 | . . . 1 . . . . 1 . Registered Components 1 | . . . 1 . . . . . . Zone Layout 4 | . . 1 1 . . . 1 1 . EX-Prototype ID Bank 1 | . . . . . 1 . . . . Fabricator Hacks . | . . . . . . . . . . Repair Station Hacks 4 | . . . 4 . . . . . . Scan Component 2 | . . . 2 . . . . . . Repair 2 | . . . 2 . . . . . . Recycling Unit Hacks 4 | . 1 . 2 . . . . 1 . Report Inventory 3 | . 1 . 1 . . . . 1 . Retrieve Components 1 | . . . 1 . . . . . . Scanalyzer 4 | . . . 2 . . . 2 . . Insert Component 2 | . . . 1 . . . 1 . . Analyze 2 | . . . 1 . . . 1 . . Garrison Access Hacks . | . . . . . . . . . . Unauthorized Hacks 17 | . 5 1 5 . . . 3 1 2 Terminals 12 | . 3 1 2 . . . 3 1 2 Botnet 12 | . 3 1 2 . . . 3 1 2 Fabricators . | . . . . . . . . . . Repair Stations . | . . . . . . . . . . Recycling Units 5 | . 2 . 3 . . . . . . Reject 1 | . . . 1 . . . . . . Mask 3 | . 1 . 2 . . . . . . Tunnel 1 | . 1 . . . . . . . . Scanalyzers . | . . . . . . . . . . Garrison Access . | . . . . . . . . . . Data Cores Recovered 2 | . . . 1 . . . 1 . . Used 1 | . . . 1 . . . . . . Hacking Detections 29 | . 5 3 9 . . . 4 6 2 Full Trace Events 11 | . 2 3 3 . . . . 3 . Feedback Events . | . . . . . . . . . . Feedback Blocked . | . . . . . . . . . . Robot Schematics Acquired . | . . . . . . . . . . Robots Built . | . . . . . . . . . . Authchips . | . . . . . . . . . . Time . | . . . . . . . . . . Total Robot Build Rating . | . . . . . . . . . . Part Schematics Acquired 4 | . 1 . 1 . . . 1 . 1 Parts Built . | . . . . . . . . . . Authchips . | . . . . . . . . . . Time . | . . . . . . . . . . Total Part Build Rating . | . . . . . . . . . . Parts Repaired 2 | . . . 2 . . . . . . Time 128 | . . . 128 . . . . . . Parts Recycled . | . . . . . . . . . . Recycled Matter . | . . . . . . . . . . Retrieved Matter . | . . . . . . . . . . Retrieved Components 3 | . . . 3 . . . . . . Parts Scanalyzed 2 | . . . 1 . . . 1 . . Part Schematics Acquired 2 | . . . 1 . . . 1 . . Parts Damaged . | . . . . . . . . . . Bothacking | -11 -10 -10 -9 -9 -9 -8 -8 -8 -8 ------------ Run | Jun Mat Min Mat Min Exi Min Mat Sto Rec Used RIF Installer . | . . . . . . . . . . Robots Hacked . | . . . . . . . . . . Non-combat . | . . . . . . . . . . Combat . | . . . . . . . . . . Robot Hacks Applied . | . . . . . . . . . . Relay Couplers Released . | . . . . . . . . . . Fabnet Peak Effective % . | . . . . . . . . . . Robots Rewired 2 | . . . . . . . . . 2 Allies Hacked . | . . . . . . . . . . Hacks Repelled . | . . . . . . . . . . Allies | -11 -10 -10 -9 -9 -9 -8 -8 -8 -8 -------- Run | Jun Mat Min Mat Min Exi Min Mat Sto Rec Total Allies 16 | . . 3 . 1 . . . 10 2 Largest Group 10 | . . 3 3 1 . . . 10 1 Highest-Rated Group 173 | . . 40 40 31 . . . 173 16 Highest-Rated Ally 31 | . . 16 16 31 . . . 29 16 Total Orders . | . . . . . . . . . . Ally Attacks 64 | . . . 24 8 . . . 29 3 Total Damage 943 | . . . 459 106 . . . 349 29 Kills 17 | . . . 10 2 . . . 5 . Allies Corrupted . | . . . . . . . . . . Allies Melted 1 | . . . . . . . . 1 . Intel | -11 -10 -10 -9 -9 -9 -8 -8 -8 -8 ------- Run | Jun Mat Min Mat Min Exi Min Mat Sto Rec Robot Analysis Total 5 | . . 1 3 . . . 1 . . Derelict Logs Recovered 3 | . . 1 . 2 . . . . . Drone Launches . | . . . . . . . . . . Drone Recoveries . | . . . . . . . . . . Exploration | -11 -10 -10 -9 -9 -9 -8 -8 -8 -8 ------------- Run | Jun Mat Min Mat Min Exi Min Mat Sto Rec Turns Passed 5264 | . 791 879 847 1094 402 82 305 664 200 Spaces Moved 3443 | 1 398 487 434 536 298 202 381 493 213 Core 15 | . . . . . . . 5 10 . Treads 766 | . 279 487 . . . . . . . Legs 821 | 1 25 . . 497 298 . . . . Wheels 567 | . 94 . 434 39 . . . . . Hover 695 | . . . . . . . . 482 213 Flight 579 | . . . . . . 202 376 1 . Fastest Speed 31 | 120 100 160 90 105 120 37 31 38 38 Average Speed 107 | 120 146 160 110 183 125 37 34 41 38 Slowest Speed 260 | 120 190 160 115 260 190 37 250 150 42 Overloaded Moves . | . . . . . . . . . . Propulsion Burnouts . | . . . . . . . . . . Robots Hopped 9 | . . . . . . 3 6 . . Cave-ins Triggered . | . . . . . . . . . . Exploration Rate (%) 58 | 2 80 91 53 86 69 57 43 64 40 Regions Visited 9 Branch Regions 6 Pre-discovered Areas 1 | . 1 . . . . . . . . Known Exits Taken 3 | . . 1 1 . . . . 1 . Unknown Exits Taken 6 | 1 1 . . 1 1 1 1 . . Scrap Searched 5 | . . 3 . 1 . 1 . . . Spaces Dug 27 | . . . . . . . 10 17 . Terrain Destroyed 364 | . . . 67 . . . 25 245 27 Melee 16 | . . . . . . . 10 6 . Projectile . | . . . . . . . . . . AOE 348 | . . . 67 . . . 15 239 27 Terrain Rammed . | . . . . . . . . . . Walls Destroyed . | . . . . . . . . . . Machines Disabled . | . . . . . . . . . . Actions | -11 -10 -10 -9 -9 -9 -8 -8 -8 -8 --------- Run | Jun Mat Min Mat Min Exi Min Mat Sto Rec Total 4680 | . 521 544 734 613 334 205 514 900 315 Wait 700 | . 29 25 194 43 2 3 75 312 17 Move 3417 | . 397 486 433 535 297 195 369 492 213 Hop 9 | . . . . . . 3 6 . . Pick Up 90 | . 20 3 20 5 15 1 7 16 3 Fast Attach 37 | . 2 1 10 4 1 . 4 14 1 Attach 36 | . 5 3 4 2 2 . 10 5 5 Detach 23 | . . 1 2 2 2 1 8 6 1 Swap 30 | . 7 3 10 . . 2 4 4 . Drop 81 | . 13 1 23 5 15 . 7 9 8 Fire 179 | . 48 21 38 17 . . 9 27 19 Melee 36 | . . . . . . . 15 15 6 Ram . | . . . . . . . . . . Kick . | . . . . . . . . . . Crush . | . . . . . . . . . . Escape Stasis . | . . . . . . . . . . Rewire 42 | . . . . . . . . . 42 Trap . | . . . . . . . . . . Miscellaneous . | . . . . . . . . . . Route ------- -11/Junkyard -10/Materials (discovered 4 exits: *Mat x2 / *Min x2) -10/Mines (discovered 2 exits: *Mat x2) -9/Materials (discovered 3 exits: *Mat / *Min x2) -9/Mines (discovered 3 exits: *Mat x2 / *Exi) -9/Exiles -8/Mines (discovered 2 exits: *Mat x2) -8/Materials -8/Storage -8/Recycling History --------- Turn | Location | Event 1 | -11/Junkyard | Discovered new exit (range 0) 1 | -11/Junkyard | Entered Materials 336 | -10/Materials | Build established: Mutant 372 | -10/Materials | Discovered new exit (range 15) 591 | -10/Materials | Discovered new exit (range 16) 707 | -10/Materials | Discovered new exit (range 10) 718 | -10/Materials | Central database locked down 757 | -10/Materials | Discovered new exit (range 15) 792 | -10/Materials | Entered Mines 888 | -10/Mines | Discovered new exit (range 11) 909 | -10/Mines | Met a Derelict bent on vengeance 1062 | -10/Mines | Identified exit to Materials 1170 | -10/Mines | Received a Rocket Launcher from a helpful Derelict 1276 | -10/Mines | Assisted by bots powering up and referring to "LRC-V3" 1352 | -10/Mines | Found the Drone Emporium 1361 | -10/Mines | Found Prototype Device 1372 | -10/Mines | Identified Sensor Drone Bay 1423 | -10/Mines | Learned Materials terminal intel 1671 | -10/Mines | Entered Materials 1671 | -9/Materials | Accompanied by 3 allies 1671 | -9/Materials | Evolved 2 slots: Utility x2 1672 | -9/Materials | Loaded intel: 12 terminal locations 1687 | -9/Materials | Central database locked down 1796 | -9/Materials | Discovered new exit (range 14) 2123 | -9/Materials | Lost 5 parts (1p1n2u1w) 2188 | -9/Materials | Discovered new exit (range 16) 2332 | -9/Materials | Repaired Corrupted Imp. Flight Unit 2397 | -9/Materials | Repaired Corrupted Imp. Flight Unit 2475 | -9/Materials | Discovered new exit (range 10) 2503 | -9/Materials | Identified exit to Mines 2518 | -9/Materials | Entered Mines 2582 | -9/Mines | Core integrity fell below 50% 2622 | -9/Mines | Discovered new exit (range 9) 2734 | -9/Mines | Discovered new exit (range 5) 2943 | -9/Mines | Learned Materials interactive machine intel 2958 | -9/Mines | A weapon hastily lodged in a ceiling crevice suddenly fell to the ground 3049 | -9/Mines | Learned Materials stockpile data 3056 | -9/Mines | Received a Mining Laser from a helpful Derelict 3323 | -9/Mines | Deemed a non-threat by the Exiles lab entrance 3323 | -9/Mines | Discovered new exit (range 5) 3423 | -9/Mines | Build established: Scavenger-Mutant 3500 | -9/Mines | Assembled infested the area 3612 | -9/Mines | Entered Exiles 3658 | -9/Exiles | Met 8R-AWN 3682 | -9/Exiles | Met EX-HEX 3715 | -9/Exiles | Met EX-BIN 3730 | -9/Exiles | Aligned with FarCom system 3731 | -9/Exiles | Given EX-Vault access code 3759 | -9/Exiles | Opened EX-Vault 3778 | -9/Exiles | Found Lightpack 2.0 3815 | -9/Exiles | Found Army-in-a-Box 3817 | -9/Exiles | Found Firepult 3841 | -9/Exiles | Warned to stay clear of 0b10 Research branches 3874 | -9/Exiles | Met EX-DEC 3996 | -9/Exiles | Discovered new exit (range 15) 4014 | -9/Exiles | Stole three prototypes: Lightpack 2.0, Army-in-a-Box, Firepult 4014 | -9/Exiles | Entered Mines 4046 | -8/Mines | Discovered new exit (range 5) 4057 | -8/Mines | Build established: Hauler-Mutant 4090 | -8/Mines | Discovered new exit (range 6) 4096 | -8/Mines | Entered Materials 4096 | -8/Materials | Evolved 2 slots: Propulsion x2 4098 | -8/Materials | Loaded intel: 19 interactive machine locations 4131 | -8/Materials | Discovered new exit (range 16) 4339 | -8/Materials | Core integrity fell below 50% 4361 | -8/Materials | Core integrity fell below 20% 4376 | -8/Materials | Destroyed 7 combat bots 4393 | -8/Materials | Lost 6 parts (1p2n3w) 4401 | -8/Materials | Entered Storage 4818 | -8/Storage | Assisted by bots powering up and referring to "LRC-V3" 4818 | -8/Storage | Identified exit to Recycling 4863 | -8/Storage | Found Prototype Launcher 4863 | -8/Storage | Identified Gui. Missile Launcher 5064 | -8/Storage | Used back door to open Recycling access 5065 | -8/Storage | Entered Recycling 5069 | -8/Recycling | Found Scrap Engine 5265 | -8/Recycling | Destroyed by H-55 Commando with Assault Rifle Last Messages --------------- 05249_ Acquired 4 matter. 05249_ Defender 3a destroyed. 05250_ A-02 Transporter destroyed. 05251_ Acquired 4 matter. 05253_ Acquired 2 matter. 05253_ Acquired 8 matter. 05253_ Penetrated by Slug. 05254_ Acquired 10 matter. 05254_ Acquired Hacking Suite. 05256_ Acquired Aerolev Unit. 05259_ Penetrated by Slug. 05259_ T-07 Excavator destroyed. 05259_ R-06 Scavenger collects Imp. Heat Sink. 05260_ Acquired 4 matter. 05262_ System corrupted: Component data lost. 05262_ R-06 Scavenger collects Lgt. Treads. 05263_ Acquired 4 matter. 05264_ Destroyed Wheel. 05265_ Acquired 4 matter. 05265_ Penetrated by Slug. Map ----- +----------------------------------------------------+ | ??# ??# [ %%[ == # #????????????????????? | | ??? ??##+############ #????????????????????? | | ?????????#????????????# #????????????????????? | | ?????????????????????## ##???????????????????? | | ?????????????????????# #???????????????????? | | ?????????????????????# #???????????????????? | | ??????#### ########### #???????????????????? | | ??# #???????????????????? | | ??????################ #???????????????????? | | ?????????????????????## ##???????????????????? | | ??????????????????????# #????????????????????? | | ??????????????????????# #????????????????????? | | ??????????????????????# ##########???????????? | | ?????????????????????## ????????? | | ?????????????????????#T ####??????????????? | | ?????????????????????## %%#???????????????? | | ??????????????????????# %%#???????????????? | | ??????????????????????# %%#???????????????? | | ?????????##+##+######## #####?????????????? | | ???????? i +?????????????? | | ???????? # ###?????????????? | | ???????? ###???????????????? | | ?????????######"Y"######+###+###???????????????? | | ??????????????#""?#u = #???????????????? | | ???????????????#??# % ] Yd #???????????????? | | ??????????????????#s @hl rY #???????????????? | | ??????????????????# Y ! ! #???????????????? | | ??????????????????# ll #???????????????? | | ??????????????????# ! r ! #???????????????? | | ??????????????????# %% #???????????????? | | ??????????????????# ut [ ! #???????????????? | | ??????????????????# % Y=%k#???????????????? | | ??????????????????# ] = [u#???????????????? | | ??????????????????# i #???????????????? | | ??????????????????# r a #???????????????? | | ??????????????????##############???????????????? | | ???????????????????????????????????????????????? | | ???????????????????????????????????????????????? | | ???????????????????????????????????????????????? | | ???????????????????????????????????????????????? | | ???????????????????????????????????????????????? | | ???????????????????????????????????????????????? | | | | | | | | | | | | | | | | | +----------------------------------------------------+ Best States ------------- Heat Dissipation 48 Coolant Potential 50 Energy Generation 18 Energy Capacity 275 Matter Stores 300 Matter Capacity 300 Sight Range 16 Terrain Scan Density 10 Armor Coverage 300 Power Shielding 66 Evasion (%) 65 Targeting Accuracy 10 Recoil Reduction 2 Offensive Hacking 10 Authchip Count 5 Item Schematics ----------------- Cargo Storage Unit | -10/Materials | Hacked Imp. Flight Unit | -9/Materials | Scanalyzed Lrn. Tractor Beam | -8/Materials | Scanalyzed Cesium-ion Thruster | -8/Recycling | Hacked Robot Schematics ------------------ None Fabricated ------------ Nothing Alien Tech Used ----------------- None Achievements -------------- None Challenges ------------ None Game ------ Seed GammaBiocellDissipator Manual? 0 Play Time 03:29:30 Cumulative 536.8 hours Start 2023.04.04 @ 19:13:02 End 2023.04.07 @ 23:09:45 Sessions 1 Manual Loads 0 Difficulty Rogue Special Mode None Game No. 563 Rogue 563 Adventurer 0 Explorer 0 Win Type - Total 1 Types 1/0/0/0/0/0/0/0/0 Lore% 65 Gallery% 83 Achievement% 66 Wizard Run 0 Options --------- ASCII 0 Keyboard 0 Movement Mouse Keybinds 0 Fullscreen 2 Font 24/Smallcaps Map View 76x50 Tactical HUD 1 Map Filters NONE Filters NONE Steam 1 RUN: c58dd662-9349-40eb-bd24-97d306b42fbc